bitfinex/quotes_ETHUSD_20250403
["timestamp","ask_amount","ask_price","bid_price","bid_amount"]
[1743647937534,0.7811,1824.9,1824.6,8.76875]
[1743647937700,0.7811,1824.9,1824.6,4.38433]
[1743647941137,0.7637,1825.1,1824.9,4.38367]
[1743647941507,6.9285,1825.2,1824.9,4.38367]
[1743647941706,6.9285,1825.2,1824.8,5.19804]
[1743647942841,6.9285,1825.2,1824.7,9.77728]
[1743647943326,4.38358,1825.0,1824.7,5.393]
[1743647943518,5.20055,1824.9,1824.4,9.78421709]
[1743647946234,0.8167,1824.9,1824.4,9.78421709]
[1743647946435,0.8167,1824.9,1824.6,4.38438]
[1743647946642,0.7568,1825.1,1824.7,4.43896954]
[1743647947008,0.7568,1825.1,1824.7,4.38417]
[1743647947541,0.7568,1825.1,1824.9,4.38379]
[1743647947841,6.12,1825.2,1825.1,4.38332]
[1743647948411,0.7568,1825.4,1825.1,4.38332]
[1743647949542,0.7568,1825.4,1825.0,4.80194808]
[1743647949543,0.7568,1825.4,1825.2,4.38297]
[1743647949759,6.12,1825.5,1825.3,4.43745375]
[1743647949960,0.7568,1825.6,1825.3,4.38267]
[1743647950463,0.7568,1825.6,1825.2,10.19222632]
[1743647950931,0.7568,1825.6,1825.3,4.38281]
[1743647951130,5.13892,1825.6,1825.2,9.77503]
[1743647951339,5.13892,1825.6,1825.2,5.392]
[1743647951340,5.20288,1825.5,1825.2,5.392]
[1743647951541,6.16138,1825.5,1825.2,5.392]
[1743647953229,0.8205,1825.5,1825.2,5.392]
[1743647953557,0.7915,1825.7,1825.3,4.38273]
[1743647953733,5.17343,1825.7,1825.2,9.77487]
[1743647953938,5.17343,1825.7,1825.2,9.82964895]
[1743647954263,5.17343,1825.7,1825.2,9.77487]
[1743647954460,6.302773,1825.7,1825.2,9.77487]
[1743647954763,6.12,1825.6,1825.2,9.77487]
[1743647955559,6.12,1825.6,1825.2,14.15784]
[1743647955753,11.29343,1825.7,1825.3,4.43751228]
[1743647955950,6.9115,1825.7,1825.3,8.82015228]
[1743647956144,6.9115,1825.7,1825.3,9.57095228]
[1743647956460,11.29342,1825.7,1825.2,10.17781526]
[1743647956664,15.67553,1825.7,1825.2,10.17781526]
[1743647957762,4.38212,1825.6,1825.2,10.17781526]
[1743647958562,15.67553,1825.7,1825.2,10.23259691]
[1743647958780,15.67553,1825.7,1825.2,10.17781526]
[1743647959367,4.38218,1825.6,1825.2,9.77504]
[1743647959570,0.7771,1825.4,1825.1,4.38329]
[1743647959771,0.7771,1825.4,1825.1,4.43807409]
[1743647960072,10.502,1825.7,1825.2,4.38305]
[1743647960242,0.7771,1825.6,1825.2,8.766]
[1743647960768,10.50251,1825.5,1825.0,7.38337]
[1743647961071,0.7771,1825.4,1825.0,7.38337]
[1743647961270,0.7771,1825.4,1825.0,11.76682]
[1743647961438,0.7771,1825.4,1825.1,4.38318]
[1743647962370,0.7771,1825.4,1825.0,4.38337]
[1743647962969,5.15971,1825.4,1825.0,4.38337]
[1743647963176,0.7771,1825.3,1825.0,4.38337]
[1743647963384,0.7771,1825.3,1825.0,8.76682]
[1743647963875,0.7771,1825.3,1825.0,4.38337]
[1743647964373,0.7771,1825.3,1825.0,8.76682]
[1743647965680,0.7771,1825.3,1825.0,4.38337]
[1743647965881,0.7771,1825.3,1824.9,7.85107546]
[1743647966081,0.7771,1825.3,1824.9,7.38375]
[1743647968090,0.7771,1825.3,1825.0,4.38354]
[1743647968408,0.7771,1825.3,1825.2,4.38308]
[1743647968556,6.9317,1825.5,1825.2,4.38308]
[1743647968757,6.9317,1825.5,1825.1,4.38318]
[1743647969087,6.9317,1825.5,1825.1,8.7664]
[1743647969279,6.9317,1825.5,1825.1,4.38318]
[1743647969792,6.9317,1825.5,1825.4,4.3826]
[1743647969999,6.12,1825.5,1825.4,4.3826]
[1743647971376,6.9034,1825.7,1825.4,4.3826]
[1743647971582,6.9034,1825.7,1825.3,4.38283]
[1743647971889,6.9034,1825.7,1825.4,4.38258]
[1743647973570,6.9034,1825.7,1825.5,4.38235]
[1743647974739,7.59374,1825.7,1825.4,4.38258]
[1743647974934,11.97564,1825.7,1825.3,4.38281]
[1743647975232,11.97564,1825.7,1825.3,4.38282]
[1743647975610,0.7707,1825.6,1825.2,9.77193]
[1743647975811,0.7707,1825.6,1825.4,4.38258]
[1743647976707,6.12,1825.7,1825.4,4.38258]
[1743647976904,6.12,1825.7,1825.5,4.38236]
[1743647978233,6.9331,1825.8,1825.5,4.38236]
[1743647979511,6.12,1825.8,1825.6,4.38206]
[1743647979699,6.12,1825.8,1825.7,4.38188]
[1743647979921,13.9992,1826.2,1825.9,4.38124]
[1743647980122,6.9192,1826.2,1826.0,4.38113]
[1743647980430,6.12,1826.2,1826.1,4.38092]
[1743647982150,6.12,1826.5,1826.4,4.3802]
[1743647982319,6.8864,1826.6,1826.4,4.3802]
[1743647982906,6.12,1826.6,1826.5,4.37996]
[1743647986244,0.7664,1826.8,1826.2,4.38052]
[1743647986245,0.7965,1826.7,1826.2,4.38052]
[1743647986543,0.7965,1826.7,1826.1,9.82255983]
[1743647986544,5.17628,1826.6,1826.1,9.82255983]
[1743647986836,5.17628,1826.6,1826.1,9.76781]
[1743647987042,5.17628,1826.6,1826.2,4.38064]
[1743647987442,0.7965,1826.6,1826.3,4.38042]
[1743647988331,0.7965,1826.6,1826.3,8.76068]
[1743647988524,0.7965,1826.6,1826.4,4.38013]
[1743647988712,6.89259291,1826.8,1826.4,4.38013]
[1743647989560,6.89259291,1826.8,1826.5,4.37994]
[1743647990237,6.89259291,1826.8,1826.4,4.38013]
[1743647990430,11.27199291,1826.8,1826.3,4.38041]
[1743647990630,15.65146291,1826.8,1826.3,4.38041]
[1743647990842,12.8471392,1826.8,1826.3,4.38041]
[1743647991761,0.7661,1826.6,1826.2,4.38045]
[1743647991923,5.14582,1826.6,1826.2,4.38045]
[1743647992127,0.7661,1826.6,1826.2,8.76103]
[1743647992946,0.7661,1826.6,1826.2,4.38045]
[1743647993119,5.14584,1826.6,1826.2,4.38045]
[1743647993323,0.7661,1826.6,1826.2,8.76103]
[1743647993523,0.7661,1826.6,1826.2,4.38045]
[1743647993947,0.7661,1826.6,1826.4,4.38015]
[1743647994155,6.92809291,1826.8,1826.4,4.38015]
[1743647994879,6.92809291,1826.8,1826.4,4.43489585]
[1743647995086,6.92809291,1826.8,1826.4,4.38015]
[1743647996784,11.30734291,1826.8,1826.3,4.3802]
[1743647996939,15.68679291,1826.8,1826.3,4.3802]
[1743647997141,11.30734291,1826.8,1826.4,4.38017]
[1743647998457,6.92809291,1826.8,1826.5,4.37995]
[1743647999588,6.92809291,1826.8,1826.4,4.38017]
[1743647999589,6.92809291,1826.8,1826.4,4.38009]
[1743648000382,4.37949,1826.7,1826.3,4.38044]
[1743648000586,4.38053,1826.3,1825.8,0.8235]
[1743648000744,6.87299291,1826.2,1825.8,8.76313]
[1743648001091,6.11259291,1826.2,1826.1,4.38092]
[1743648001389,6.11259291,1826.2,1826.1,9.76492]
[1743648001683,0.7942,1826.6,1826.3,4.38027]
[1743648001880,0.7942,1826.7,1826.3,5.15487]
[1743648002172,0.7942,1826.7,1826.5,4.37976]
[1743648003370,6.11259291,1826.8,1826.5,4.37976]
[1743648003574,6.11259291,1826.8,1826.6,4.4342609]
[1743648003776,6.11259291,1826.8,1826.6,4.37952]
[1743648004085,6.11259291,1826.8,1826.6,4.4342608]
[1743648004248,6.11259291,1826.8,1826.5,5.384]
[1743648004457,0.754,1826.7,1826.5,5.384]
[1743648004769,5.13348,1826.7,1826.3,4.38028]
[1743648005353,0.754,1826.7,1826.4,4.38019]
[1743648005738,0.754,1826.7,1826.3,4.38028]
[1743648005942,4.37973,1826.6,1826.2,5.384]
[1743648006153,4.37973,1826.6,1826.2,9.76466]
[1743648006363,5.13353,1826.7,1826.2,9.76466]
[1743648006537,5.13353,1826.7,1826.2,14.19993066]
[1743648006744,5.13353,1826.7,1826.2,14.14518]
[1743648007048,0.754,1826.7,1826.3,4.38041]
[1743648007254,0.754,1826.7,1826.4,5.17419]
[1743648007445,0.754,1826.7,1826.3,4.38032]
[1743648007649,5.13356,1826.7,1826.3,4.38032]
[1743648007849,5.13356,1826.7,1826.2,9.76466]
[1743648008047,4.37997,1826.5,1826.2,5.384]
[1743648008275,5.16127,1826.5,1826.2,5.384]
[1743648009144,4.3802,1826.4,1826.0,5.17522]
[1743648009344,0.7713,1826.2,1825.9,4.38123]
[1743648009945,0.7713,1826.2,1826.0,4.38113]
[1743648010293,0.7713,1826.2,1825.9,8.81724169]
[1743648010494,0.7713,1826.2,1826.0,4.38108]
[1743648011543,6.11259291,1826.3,1826.1,4.38078]
[1743648011798,13.95159291,1826.6,1826.4,4.38017]
[1743648011953,6.11259291,1826.6,1826.4,4.38017]
[1743648012153,6.11259291,1826.6,1826.4,8.76017]
[1743648012598,6.21259291,1826.9,1826.6,4.37949]
[1743648012891,6.21259291,1826.9,1826.7,4.37937]
[1743648013251,6.21259291,1826.9,1826.8,4.37924]
[1743648013784,6.21259291,1826.9,1826.8,5.19494]
[1743648016089,0.1,1826.9,1826.8,5.19494]
[1743648016458,0.1,1826.9,1826.8,5.24966922]
[1743648017560,0.1,1826.9,1826.8,5.19494]
[1743648017755,0.1,1826.9,1826.8,5.24966577]
[1743648018377,0.1,1826.9,1826.8,8.24965706]
[1743648019154,0.0912759,1826.9,1826.8,8.19494]
[1743648020860,1e-05,1827.2,1827.1,8.20072]
[1743648021065,6.11259291,1827.8,1827.6,5.19946]
[1743648021392,6.11259291,1827.8,1827.6,10.58146]
[1743648021792,6.11259291,1827.8,1827.7,4.37708]
[1743648021990,0.1,1827.9,1827.8,4.37684]
[1743648022196,0.1,1827.9,1827.8,7.37684]
[1743648023162,0.1,1827.9,1827.8,9.75784]
[1743648023365,0.1,1827.9,1827.8,9.81254026]
[1743648023561,0.1,1827.9,1827.8,12.81254026]
[1743648023795,0.1,1827.9,1827.8,13.56594]
[1743648026292,0.1,1827.9,1827.8,12.75784]
[1743648030930,0.9109,1827.9,1827.5,4.37736]
[1743648031119,0.8109,1827.7,1827.3,14.13474]
[1743648031297,0.8109,1827.7,1827.3,9.75682]
[1743648031697,0.8897,1827.9,1827.6,4.37711]
[1743648032129,0.8897,1827.9,1827.6,8.80896001]
[1743648032339,5.26637,1827.9,1827.4,4.37765]
[1743648032629,0.8897,1827.9,1827.5,4.37752]
[1743648033201,0.8897,1827.9,1827.5,4.43223007]
[1743648033536,0.8897,1827.9,1827.7,4.37703]
[1743648035009,0.8897,1827.9,1827.5,4.37739]
[1743648035610,5.26641,1827.9,1827.5,4.37739]
[1743648035820,0.8897,1827.9,1827.6,4.43189009]
[1743648036655,0.8897,1827.9,1827.6,0.05471009]
[1743648036956,0.8897,1827.9,1827.5,4.37739]
[1743648037246,5.26632,1827.9,1827.5,4.37739]
[1743648037616,0.8897,1827.9,1827.5,8.75485]
[1743648037816,0.8897,1827.9,1827.6,0.05471029]
[1743648039954,0.8897,1827.9,1827.6,4.43203029]
[1743648040454,0.8897,1827.9,1827.5,8.75485]
[1743648040659,5.2663,1827.9,1827.5,4.37739]
[1743648040823,0.8897,1827.9,1827.5,4.37739]
[1743648041020,0.7581,1827.7,1827.1,4.3784]
[1743648041223,0.7581,1827.5,1827.2,4.37818]
[1743648041456,5.13567,1827.5,1827.0,9.75773]
[1743648041827,5.13567,1827.5,1827.0,14.13629]
[1743648042450,5.13567,1827.5,1827.1,4.433195]
[1743648042658,0.7581,1827.2,1826.8,8.75819]
[1743648042830,0.7581,1827.2,1826.9,0.05473159]
[1743648043152,0.7581,1827.2,1826.8,4.37908]
[1743648043356,0.7581,1827.4,1827.1,4.37852]
[1743648043655,5.13591,1827.4,1826.9,4.37876]
[1743648044057,6.26076029,1827.4,1826.9,4.37876]
[1743648044241,0.7688,1827.3,1826.9,4.37876]
[1743648044446,0.7688,1827.3,1827.0,4.37864]
[1743648044642,0.7688,1827.3,1827.1,4.43313076]
[1743648044859,0.7688,1827.3,1827.1,8.75681]
[1743648045064,0.7688,1827.3,1826.9,7.37881]
[1743648045231,5.661536,1827.3,1826.9,4.37881]
[1743648045445,1.283476,1827.3,1827.0,4.37872]
[1743648045646,0.7688,1827.3,1827.0,4.37872]
[1743648045825,0.7688,1827.3,1827.1,4.37848]
[1743648046025,0.7688,1827.3,1827.1,8.75689]
[1743648046237,0.7688,1827.3,1827.1,4.37841]
[1743648047153,0.7688,1827.3,1827.0,0.05473124]
[1743648047356,5.14684,1827.3,1826.9,4.37881]
[1743648047768,6.88139291,1827.3,1826.9,3.0]
[1743648048059,6.88139291,1827.3,1827.0,4.37854]
[1743648048227,6.88139291,1827.3,1826.9,7.37887]
[1743648048428,6.88139291,1827.3,1826.8,4.37919]
[1743648048429,11.25946291,1827.3,1826.8,4.37919]
[1743648048780,0.7518,1827.1,1826.7,14.13769]
[1743648049065,0.7518,1827.1,1826.7,4.37932]
[1743648049267,0.7518,1827.1,1826.7,4.43405729]
[1743648049449,5.13038,1827.1,1826.7,4.43405729]
[1743648051249,5.13038,1827.1,1826.7,4.37932]
[1743648051961,5.13038,1827.1,1826.5,9.75975]
[1743648051962,5.13534,1826.9,1826.5,9.75975]
[1743648052165,0.7563,1826.9,1826.6,0.05474096]
[1743648052366,0.7563,1826.9,1826.5,9.75975]
[1743648052550,0.7563,1826.9,1826.6,0.05474218]
[1743648052755,0.7563,1826.9,1826.6,4.43429218]
[1743648053454,0.7563,1826.9,1826.6,4.43429094]
[1743648053774,0.7563,1826.9,1826.7,4.37937]
[1743648055294,0.7563,1826.9,1826.6,4.3795]
[1743648056292,0.7563,1826.9,1826.6,8.75911]
[1743648056861,0.7563,1826.9,1826.6,4.3795]
[1743648058415,0.7504,1826.7,1826.3,7.3804]
[1743648058596,10.49244291,1826.6,1826.2,4.38064]
[1743648058795,0.8127,1826.5,1826.2,4.38064]
[1743648059163,0.8127,1826.5,1826.3,4.38038]
[1743648059780,0.8127,1826.5,1826.3,8.76062]
[1743648059992,0.8127,1826.5,1826.4,4.3802]
[1743648060567,6.11259291,1826.6,1826.5,4.37996]
[1743648061393,6.11259291,1826.6,1826.4,4.3802]
[1743648062180,6.11259291,1826.6,1826.5,4.37996]
[1743648062383,6.11259291,1826.6,1826.4,4.3802]
[1743648062886,6.11259291,1826.6,1826.4,4.43494614]
[1743648063097,6.11259291,1826.6,1826.4,4.3802]
[1743648065110,6.11259291,1826.6,1826.4,4.43494616]
[1743648065473,6.11259291,1826.6,1826.4,4.3802]
[1743648065679,6.11259291,1826.6,1826.4,4.43476618]
[1743648065878,6.11259291,1826.6,1826.5,4.37996]
[1743648066077,6.11259291,1826.6,1826.4,4.38002]
[1743648068009,0.7716,1826.5,1826.1,9.76191]
[1743648068211,0.7716,1826.5,1826.2,4.3805]
[1743648068507,0.7716,1826.5,1826.4,4.3802]
[1743648068712,6.11259291,1826.6,1826.4,4.3802]
[1743648068912,6.11259291,1826.6,1826.5,4.37996]
[1743648069410,6.11259291,1826.6,1826.4,4.3802]
[1743648069909,6.11259291,1826.6,1826.4,8.7603]
[1743648070300,6.11259291,1826.6,1826.4,4.3801]
[1743648070896,6.11259291,1826.6,1826.5,4.37996]
[1743648071212,6.11259291,1826.6,1826.4,4.3801]
[1743648071590,6.11259291,1826.6,1826.2,4.38044]
[1743648071792,0.7612,1826.5,1826.2,8.76102]
[1743648072207,0.7612,1826.5,1826.2,4.38044]
[1743648072607,0.7612,1826.5,1826.2,8.76102]
[1743648073189,0.7612,1826.5,1826.2,4.38044]
[1743648074724,0.7612,1826.5,1826.2,4.38066]
[1743648075951,0.7612,1826.5,1826.4,4.3802]
[1743648076251,6.11259291,1826.6,1826.5,4.37996]
[1743648080363,6.11259291,1826.6,1826.3,4.38041]
[1743648080547,0.8108,1826.5,1826.2,4.38055]
[1743648080740,0.8108,1826.5,1826.2,8.76107]
[1743648081065,0.8108,1826.5,1826.2,4.38052]
[1743648082122,0.8108,1826.5,1826.2,8.76102]
[1743648082628,0.8108,1826.5,1826.3,4.38043]
[1743648083245,0.8108,1826.5,1826.2,4.3805]
[1743648083563,0.8108,1826.5,1826.2,8.76106]
[1743648084060,0.8108,1826.5,1826.2,4.3805]
[1743648085629,6.11259291,1826.6,1826.4,4.3802]
[1743648087265,0.8305,1826.5,1826.1,4.38078]
[1743648087772,5.21051,1826.5,1826.1,4.38078]
[1743648088187,0.8305,1826.5,1826.2,4.38067]
[1743648088683,0.7752,1826.3,1826.0,4.38111]
[1743648089042,11.27900291,1826.2,1825.9,5.381]
[1743648089243,12.8449482,1826.2,1825.9,5.381]
[1743648089944,17.2258582,1826.2,1825.9,5.381]
[1743648090137,12.0593482,1826.2,1825.7,4.38167]
[1743648090342,0.7682,1826.1,1825.7,4.38167]
[1743648090985,4.38134,1826.0,1825.6,0.05476923]
[1743648091205,4.38134,1826.0,1825.4,5.19975]
[1743648091206,1.201334,1825.9,1825.5,4.38232]
[1743648091880,5.582764,1825.9,1825.5,4.38232]
[1743648092088,0.7723,1825.7,1825.3,9.76381]
[1743648092253,5.15428,1825.7,1825.2,9.76394]
[1743648092451,6.88489291,1825.7,1825.2,5.43578073]
[1743648092642,6.88489291,1825.7,1825.4,4.38247]
[1743648093390,6.88489291,1825.7,1825.3,8.76541]
[1743648093533,6.88489291,1825.7,1825.4,4.38256]
[1743648093731,6.88489291,1825.7,1825.3,4.38268]
[1743648094179,6.88489291,1825.7,1825.3,8.76541]
[1743648094477,6.88489291,1825.7,1825.3,4.38268]
[1743648095494,6.88489291,1825.7,1825.5,4.38214]
[1743648096885,6.88489291,1825.7,1825.4,4.38253]
[1743648097975,6.11259291,1825.7,1825.6,4.38212]
[1743648098747,0.771,1825.6,1825.3,8.76536]
[1743648098964,0.771,1825.6,1825.3,4.38265]
[1743648099476,0.771,1825.6,1825.3,8.76538]
[1743648099846,9.563,1825.4,1825.1,0.1]
[1743648100034,0.7975,1825.2,1825.1,0.1]
[1743648103091,5.18058,1825.2,1825.1,0.1]
[1743648103461,0.7975,1825.2,1825.1,0.1]
[1743648104254,11.29317291,1825.2,1825.1,0.1]
[1743648106886,6.91009291,1825.2,1825.1,0.1]
[1743648107412,10.49567291,1825.2,1825.1,0.1]
[1743648107593,19.5190692,1825.2,1825.1,0.1]
[1743648109473,14.00669291,1825.2,1825.1,0.1]
[1743648110470,14.00669291,1825.2,1825.1,4.48332]
[1743648110708,14.00669291,1825.2,1825.1,0.1]
[1743648111169,13.19259291,1825.2,1825.1,0.1]
[1743648112510,6.11259291,1825.2,1825.1,0.9155]
[1743648112705,6.11259291,1825.2,1825.1,5.29882]
[1743648113393,6.11259291,1825.6,1825.5,5.20796]
[1743648114202,11.25726291,1826.0,1825.5,5.20796]
[1743648114402,0.7635,1825.7,1825.3,8.76534]
[1743648117308,6.11259291,1825.6,1825.1,4.48309]
[1743648117804,6.11259291,1825.6,1825.2,4.38296]
[1743648118326,5.14464,1825.5,1825.1,0.1]
[1743648118474,0.7622,1825.3,1825.1,0.1]
[1743648120288,5.14509,1825.3,1825.1,0.1]
[1743648120488,6.70913729,1825.3,1825.1,0.1]
[1743648120711,0.7622,1825.3,1825.1,0.1]
[1743648122108,6.11259291,1825.2,1825.1,0.1]
[1743648122873,6.89489291,1825.2,1825.1,0.1]
[1743648123213,11.27797291,1825.2,1825.1,0.1]
[1743648123678,11.27797291,1825.2,1824.8,4.06724]
[1743648123883,12.8440552,1825.2,1824.8,4.06724]
[1743648124094,12.8440752,1825.2,1824.8,4.38387]
[1743648124394,8.4609752,1825.2,1824.8,8.76774]
[1743648124607,8.4609752,1825.2,1824.8,4.38387]
[1743648125213,8.4609752,1825.2,1824.8,8.76777]
[1743648125412,6.11259291,1825.2,1825.0,4.38341]
[1743648125711,6.11259291,1825.2,1825.1,5.18342]
[1743648125904,6.11259291,1825.6,1825.5,4.38236]
[1743648127922,6.11259291,1825.6,1825.4,8.7652]
[1743648128218,6.11259291,1825.6,1825.4,4.3826]
[1743648128420,6.11259291,1825.6,1825.5,4.38236]
[1743648129522,6.11259291,1825.6,1825.5,5.14476]
[1743648134413,6.11259291,1825.9,1825.5,3.7624]
[1743648134597,6.11259291,1825.9,1825.8,4.38164]
[1743648142141,6.11259291,1826.3,1826.2,4.38068]
[1743648142325,6.11259291,1826.3,1826.2,5.17368]
[1743648142911,6.11259291,1826.3,1826.2,5.22843358]
[1743648143119,6.11259291,1826.3,1826.2,5.17368]
[1743648143443,0.7925,1826.7,1826.3,8.76056]
[1743648144202,0.7925,1826.7,1826.4,4.38008]
[1743648146539,0.7925,1826.7,1826.3,4.38025]
[1743648146540,5.17201,1826.7,1826.3,4.38025]
[1743648146838,0.1,1826.9,1825.9,5.1558]
[1743648146839,4.38031,1826.4,1825.9,5.1558]
[1743648147142,0.438031,1826.3,1826.1,4.38077]
[1743648147314,6.11259291,1826.4,1826.1,4.38077]
[1743648147503,10.49289291,1826.4,1826.0,4.38113]
[1743648147708,0.8323,1826.3,1825.8,4.38163]
[1743648148010,5.21292,1826.3,1825.9,4.38137]
[1743648148644,5.21292,1826.3,1825.8,4.38163]
[1743648148937,0.521292,1826.2,1825.8,4.38146]
[1743648149840,0.521292,1826.2,1825.2,4.6601855]
[1743648149841,0.7543,1825.9,1825.4,4.38246]
[1743648150065,6.11259291,1825.8,1825.5,4.38231]
[1743648150410,6.11259291,1825.8,1825.6,4.38195]
[1743648152459,6.11259291,1826.1,1826.0,4.38116]
[1743648154020,0.8184,1826.0,1825.5,4.38218]
[1743648154320,6.11259291,1825.9,1825.6,0.00364984]
[1743648154526,0.61125929,1825.8,1825.6,0.00364984]
[1743648155926,6.90529291,1825.7,1825.6,0.00364984]
[1743648159556,6.11259291,1825.7,1825.6,0.00364984]
[1743648161780,11.26517291,1825.7,1825.6,0.00364984]
[1743648162061,18.34517291,1825.7,1825.6,0.00364984]
[1743648162767,18.75215251,1825.7,1825.6,0.00364984]
[1743648162953,21.37564426,1825.7,1825.6,0.00364984]
[1743648164553,0.7854,1825.1,1824.7,5.14754]
[1743648164730,6.89434307,1825.1,1824.7,5.14754]
[1743648166554,6.10894307,1825.1,1824.8,4.38402]
[1743648166768,6.10894307,1825.1,1824.9,4.38369]
[1743648167056,6.10894307,1825.1,1824.7,5.14737]
[1743648167271,6.10894307,1825.1,1824.7,9.53154]
[1743648168447,6.10894307,1825.1,1824.8,4.384]
[1743648169169,11.29227307,1825.1,1824.7,5.14737]
[1743648169672,11.29227307,1825.1,1824.6,4.38451]
[1743648170477,15.67581307,1825.1,1824.6,4.38451]
[1743648170942,4.38367,1825.0,1824.5,9.53049]
[1743648171142,5.95126431,1825.0,1824.5,9.53049]
[1743648171675,4.3843,1824.7,1824.3,5.15015]
[1743648171872,4.3843,1824.7,1824.2,5.15058]
[1743648171873,6.10894307,1824.6,1824.2,5.15058]
[1743648172277,6.10894307,1824.6,1824.3,4.3851]
[1743648172804,6.10894307,1824.6,1824.4,4.38486]
[1743648173458,6.10894307,1824.6,1824.4,8.76966]
[1743648174155,6.10894307,1824.6,1824.5,4.38476]
[1743648176982,6.10894307,1824.6,1824.4,4.3848]
[1743648177492,6.10894307,1824.6,1824.4,8.76969]
[1743648178086,4.38514,1824.4,1824.1,0.1]
[1743648178679,4.38534,1824.3,1824.1,0.1]
[1743648178881,6.10894307,1824.2,1824.1,0.1]
[1743648179086,11.31342307,1824.2,1824.1,0.1]
[1743648180190,6.10894307,1824.2,1824.1,0.1]
[1743648180778,6.10894307,1824.2,1824.1,5.23592]
[1743648181161,6.10894307,1824.6,1824.4,4.38482]
[1743648181587,6.10894307,1824.6,1824.2,8.77071]
[1743648181794,6.10894307,1824.6,1824.1,5.23592]
[1743648182715,4.38487,1824.5,1824.1,0.1]
[1743648182916,5.87270731,1824.5,1824.1,0.1]
[1743648183117,5.87270731,1824.5,1824.1,4.48569]
[1743648183618,0.7857,1824.4,1824.1,4.48569]
[1743648183820,0.7857,1824.4,1824.2,4.38547]
[1743648184320,1.48783731,1824.5,1824.2,4.38547]
[1743648185325,1.48783731,1824.5,1824.1,4.48569]
[1743648185493,5.87266731,1824.5,1824.1,4.48569]
[1743648185693,4.97232673,1824.4,1824.1,0.1]
[1743648186495,5.16235,1824.3,1824.1,0.1]
[1743648187226,11.27152307,1824.2,1824.1,0.1]
[1743648188923,6.88604307,1824.2,1824.1,0.1]
[1743648189131,6.10894307,1824.2,1824.1,0.1]
[1743648190827,7.42683738,1824.2,1824.1,0.1]
[1743648191932,12.57611738,1824.2,1824.1,0.1]
[1743648193325,8.19063738,1824.2,1824.1,0.1]
[1743648193731,7.42683738,1824.2,1824.1,0.1]
[1743648193939,6.10894307,1824.2,1824.1,0.1]
[1743648195720,10.49442307,1824.2,1824.1,0.1]
[1743648196630,6.10894307,1824.2,1824.1,0.1]
[1743648197023,10.49442307,1824.2,1824.1,0.1]
[1743648197522,6.10894307,1824.2,1824.1,0.1]
[1743648197723,8.36960524,1824.2,1824.1,0.1]
[1743648199901,12.75508524,1824.2,1824.1,0.1]
[1743648203119,13.57748524,1824.2,1824.1,0.1]
[1743648203301,18.95948524,1824.2,1824.1,0.1]
[1743648203807,26.02948524,1824.2,1824.1,0.1]
[1743648204321,26.30531515,1824.2,1824.1,0.1]
[1743648204532,0.8259,1823.8,1823.3,5.19801]
[1743648204736,6.00894307,1823.7,1823.3,5.19801]
[1743648204911,0.60089431,1823.6,1823.3,5.19801]
[1743648205331,10.39622307,1823.5,1823.1,0.9172]
[1743648205535,10.39622307,1823.5,1823.1,5.3053]
[1743648206054,11.21222307,1823.5,1823.1,5.3053]
[1743648206733,6.82494307,1823.5,1823.1,0.1]
[1743648206934,0.68249431,1823.4,1823.1,0.1]
[1743648207155,6.00894307,1823.3,1823.1,0.1]
[1743648207477,10.39664307,1823.3,1823.1,0.1]
[1743648207775,5.20388,1823.2,1823.1,0.1]
[1743648208077,0.816,1823.2,1823.1,0.1]
[1743648208228,8.38498938,1823.2,1823.1,0.1]
[1743648208434,6.00894307,1823.2,1823.1,0.1]
[1743648209276,6.00894307,1823.2,1823.1,4.48813]
[1743648209476,6.00894307,1823.2,1823.1,5.28083]
[1743648210031,6.00894307,1823.2,1823.1,0.1]
[1743648215073,6.00894307,1823.2,1823.1,4.48813]
[1743648218471,6.00894307,1823.2,1823.1,5.31883]
[1743648223096,6.00894307,1823.2,1823.1,4.48813]
[1743648237411,6.83534307,1823.2,1823.1,0.1]
[1743648238181,6.00894307,1823.2,1823.1,0.1]
[1743648238812,6.00894307,1823.2,1823.1,4.48813]
[1743648240213,12.97894307,1823.7,1823.6,4.38692]
[1743648240376,12.97894307,1823.7,1823.2,0.763]
[1743648240377,6.00894307,1823.7,1823.4,4.3874]
[1743648240580,6.00894307,1823.7,1823.3,4.3875]
[1743648240581,10.39565307,1823.7,1823.3,4.3875]
[1743648241004,6.00894307,1823.7,1823.4,4.38737]
[1743648241223,7.13114438,1823.7,1823.4,4.38737]
[1743648241680,7.13114438,1823.7,1823.5,4.38707]
[1743648241884,6.00894307,1823.7,1823.5,4.38707]
[1743648242790,6.00894307,1823.7,1823.5,5.17607]
[1743648242997,6.00894307,1823.7,1823.6,4.38692]
[1743648247425,6.00894307,1823.7,1823.5,5.17607]
[1743648247631,6.00894307,1823.7,1823.5,4.38707]
[1743648247995,6.00894307,1823.7,1823.6,4.38692]
[1743648255547,6.00894307,1823.7,1823.6,5.20512]
[1743648256046,6.00894307,1823.7,1823.3,4.38755]
[1743648256342,5.18613,1823.6,1823.2,4.38774]
[1743648256644,6.00894307,1823.5,1823.2,4.38774]
[1743648256950,10.39615307,1823.5,1823.1,4.48806]
[1743648257175,11.51566038,1823.5,1823.1,4.48806]
[1743648258232,7.12845038,1823.5,1823.1,4.48806]
[1743648258952,0.8176,1823.4,1823.1,0.1]
[1743648259270,5.20548,1823.2,1823.1,0.1]
[1743648259422,18.18442307,1823.2,1823.1,0.1]
[1743648262046,21.18442307,1823.2,1823.1,0.1]
[1743648262423,26.56442307,1823.2,1823.1,0.1]
[1743648262634,26.97502201,1823.2,1823.1,0.1]
[1743648262829,30.42261751,1823.2,1823.1,0.1]
[1743648265260,22.62413857,1823.2,1823.1,0.1]